bitfinex/quotes_ETHUSD_20251017
["timestamp","ask_amount","ask_price","bid_price","bid_amount"]
[1760672168902,0.34249058,3940.4,3940.0,0.002]
[1760672168903,0.4648,3940.1,3940.0,0.002]
[1760672170532,9.41759,3940.1,3940.0,0.002]
[1760672170702,5.25850006,3940.1,3940.0,0.002]
[1760672171030,4.063357,3940.1,3940.0,0.002]
[1760672171530,22.435845,3940.1,3940.0,0.002]
[1760672171714,26.70185164,3940.1,3940.0,0.002]
[1760672172038,25.52461864,3940.1,3940.0,0.002]
[1760672172640,26.52921675,3940.1,3940.0,0.002]
[1760672172817,29.02937301,3940.1,3940.0,0.002]
[1760672173436,32.59439801,3940.1,3940.0,0.002]
[1760672174537,35.32877701,3940.1,3940.0,0.002]
[1760672175540,37.67920001,3940.1,3940.0,0.002]
[1760672179118,37.2809629,3940.1,3940.0,0.002]
[1760672179528,34.9347089,3940.1,3940.0,0.002]
[1760672180541,37.2809629,3940.1,3940.0,0.002]
[1760672182152,40.87384802,3940.1,3940.0,0.002]
[1760672182457,2.58826433,3939.7,3939.6,0.002]
[1760672182654,46.80160191,3939.7,3939.3,0.002]
[1760672182863,34.26671541,3939.0,3937.5,0.002]
[1760672183214,43.60771081,3938.6,3937.5,0.002]
[1760672183320,47.15351279,3938.6,3937.5,0.002]
[1760672183520,47.59981279,3938.6,3937.5,0.002]
[1760672184461,2.58961804,3937.6,3937.5,0.002]
[1760672184662,41.52498683,3937.6,3937.5,0.002]
[1760672184878,41.97128683,3937.6,3937.5,0.002]
[1760672185017,42.43865131,3937.6,3937.5,0.002]
[1760672185358,37.22210862,3937.6,3937.5,0.002]
[1760672185868,37.57058796,3937.6,3937.5,0.002]
[1760672186078,38.06688796,3937.6,3937.5,0.002]
[1760672189166,32.46896992,3937.6,3937.5,0.002]
[1760672189349,35.58644096,3937.6,3937.5,0.002]
[1760672189548,33.04682292,3937.6,3937.5,0.002]
[1760672189750,34.71469892,3937.6,3937.5,0.002]
[1760672190148,37.30431696,3937.6,3937.5,0.002]
[1760672190745,37.62258796,3937.6,3937.5,0.002]
[1760672191350,38.06888796,3937.6,3937.5,0.002]
[1760672191877,37.62258796,3937.6,3937.5,0.002]
[1760672192250,38.06888796,3937.6,3937.5,0.002]
[1760672194370,37.67040862,3937.6,3937.5,0.002]
[1760672195387,38.06894607,3937.6,3937.5,0.002]
[1760672195967,35.05864607,3937.6,3937.5,0.002]
[1760672196293,37.62364607,3937.6,3937.5,0.002]
[1760672197684,7.62364607,3937.6,3937.5,0.002]
[1760672197986,37.62364607,3937.6,3937.5,0.002]
[1760672198889,37.22510862,3937.6,3937.5,0.002]
[1760672201162,37.67140862,3937.6,3937.5,0.002]
[1760672204500,44.67140862,3937.6,3937.5,0.002]
[1760672205100,45.06992053,3937.6,3937.5,0.002]
[1760672206982,15.06992053,3937.6,3937.5,0.002]
[1760672207182,45.01992053,3937.6,3937.5,0.002]
[1760672207401,44.44266944,3937.6,3937.5,0.002]
[1760672208100,50.65743744,3937.6,3937.5,0.002]
[1760672208300,50.65777428,3937.6,3937.5,0.002]
[1760672209621,41.36993953,3937.6,3937.5,0.002]
[1760672209794,40.97142762,3937.6,3937.5,0.002]
[1760672209973,42.31870062,3937.6,3937.5,0.002]
[1760672210178,32.87133362,3937.6,3937.5,0.002]
[1760672210608,32.87233362,3937.6,3937.5,0.002]
[1760672211003,43.60763962,3937.6,3937.5,0.002]
[1760672211196,41.21792162,3937.6,3937.5,0.002]
[1760672212027,41.71866862,3937.6,3937.5,0.002]
[1760672212313,40.03298962,3937.6,3937.5,0.002]
[1760672213095,44.22510862,3937.6,3937.5,0.002]
[1760672213808,41.38285662,3937.6,3937.5,0.002]
[1760672214008,41.78133863,3937.6,3937.5,0.002]
[1760672215239,41.80981363,3937.6,3937.5,0.002]
[1760672215417,40.88584763,3937.6,3937.5,0.002]
[1760672215921,30.64249159,3937.6,3937.5,0.002]
[1760672216233,18.25130001,3937.6,3937.5,0.002]
[1760672216432,22.51891805,3937.6,3937.5,0.002]
[1760672216734,22.98871805,3937.6,3937.5,0.002]
[1760672217307,44.69990005,3937.6,3937.5,0.002]
[1760672217807,45.33350005,3937.6,3937.5,0.002]
[1760672218113,47.4351743,3937.6,3937.5,0.002]
[1760672218421,32.58987605,3937.2,3937.1,0.002]
[1760672218603,42.4707298,3937.2,3937.1,0.002]
[1760672218806,42.9405298,3937.2,3937.1,0.002]
[1760672219453,37.35267605,3937.2,3937.1,0.002]
[1760672219747,37.69516663,3937.2,3937.1,0.002]
[1760672221229,8.09373598,3937.2,3937.1,0.002]
[1760672221431,38.09373598,3937.2,3937.1,0.002]
[1760672221633,37.62393598,3937.2,3937.1,0.002]
[1760672222143,38.06093598,3937.2,3937.1,0.002]
[1760672223740,37.62393598,3937.2,3937.1,0.002]
[1760672224061,33.53989698,3937.2,3937.1,0.002]
[1760672224263,21.35032098,3937.2,3937.1,0.0838]
[1760672224575,27.95022698,3937.2,3937.1,0.0838]
[1760672224760,17.14022035,3937.2,3937.1,0.5193]
[1760672224966,13.79013335,3937.2,3937.1,0.5193]
[1760672225143,8.54030535,3937.2,3937.1,0.5193]
[1760672225318,13.41891235,3937.2,3937.1,0.5193]
[1760672225518,11.36293135,3937.2,3937.1,0.5193]
[1760672225756,13.31872449,3937.2,3937.1,0.002]
[1760672225920,17.58660054,3937.2,3937.1,0.002]
[1760672226424,39.18723854,3937.2,3937.1,0.002]
[1760672226848,35.89287254,3937.2,3937.1,0.002]
[1760672227164,35.66574454,3937.2,3937.1,0.002]
[1760672227368,38.80649454,3937.2,3937.1,0.002]
[1760672227921,36.56854854,3937.2,3937.1,0.002]
[1760672228389,39.82765652,3937.2,3937.1,0.002]
[1760672228593,39.22566919,3937.2,3937.1,0.002]
[1760672229991,40.46125652,3937.2,3937.1,0.002]
[1760672230174,37.41866919,3937.2,3937.1,0.002]
[1760672230483,9.243652,3937.2,3937.1,0.5193]
[1760672230681,12.074621,3937.2,3937.1,0.5193]
[1760672231049,7.0,3937.2,3937.1,0.5193]
[1760672231255,9.567,3937.2,3937.1,0.5193]
[1760672231869,9.567,3937.2,3937.1,3.05924056]
[1760672232095,9.567,3937.2,3937.1,3.61937672]
[1760672232288,9.567,3937.2,3937.1,4.25297672]
[1760672232473,9.567,3937.2,3937.1,4.27837612]
[1760672232673,7.0,3937.2,3937.1,4.25297672]
[1760672233054,5.78262399,3937.2,3937.1,4.25297672]
[1760672233456,4.35616755,3937.2,3937.1,5.98097672]
[1760672234689,6.99999755,3937.2,3937.1,5.98097672]
[1760672234989,0.001,3937.5,3937.4,0.6336]
[1760672235189,2.568,3937.5,3937.4,0.17130362]
[1760672235488,2.568,3937.5,3937.1,0.0838]
[1760672235678,2.568,3937.5,3937.4,0.4355]
[1760672237208,2.568,3937.5,3937.1,0.0838]
[1760672237504,5.181643,3937.4,3937.1,0.0838]
[1760672237706,2.568,3937.5,3937.1,0.0838]
[1760672237895,2.568,3937.5,3937.2,0.4355]
[1760672238097,2.568,3937.5,3937.1,0.34638568]
[1760672238098,2.568,3937.5,3937.3,0.4355]
[1760672238302,2.568,3937.5,3937.1,0.34638568]
[1760672238479,2.568,3937.5,3937.2,0.4355]
[1760672238806,2.568,3937.5,3937.3,0.4355]
[1760672239007,2.568,3937.5,3937.4,1.02166136]
[1760672239174,2.568,3937.5,3937.4,2.97524704]
[1760672239376,2.568,3937.5,3937.4,0.4355]
[1760672239776,2.568,3937.5,3937.4,2.97524704]
[1760672240016,0.001,3937.5,3937.4,3.60884704]
[1760672240181,0.005,3937.5,3937.4,3.60884704]
[1760672240379,0.005,3937.5,3937.4,4.24473594]
[1760672242744,0.001,3937.5,3937.4,4.24473594]
[1760672249438,0.001,3937.5,3937.4,0.6358889]
[1760672249608,0.001,3937.5,3937.4,2.53974704]
[1760672249803,0.001,3937.5,3937.4,3.00254451]
[1760672250008,0.001,3937.5,3937.4,2.97714704]
[1760672250235,0.001,3937.5,3937.4,3.61074704]
[1760672250441,0.001,3937.5,3937.4,3.63614451]
[1760672250707,0.001,3937.5,3937.4,4.40952803]
[1760672250906,0.001,3937.5,3937.4,3.97212803]
[1760672252343,0.001,3937.5,3937.4,0.79878099]
[1760672252546,0.001,3937.5,3937.4,2.53974704]
[1760672255554,0.001,3937.5,3937.2,0.6336]
[1760672255921,0.001,3937.5,3937.4,2.53974704]
[1760672260167,0.001,3937.5,3937.3,2.53980546]
[1760672260674,0.001,3937.5,3937.3,2.5398027]
[1760672261067,0.001,3937.5,3937.3,3.1113363]
[1760672261367,0.001,3937.5,3937.4,2.53974704]
[1760672262606,0.001,3937.5,3937.4,3.19874451]
[1760672262756,0.001,3937.5,3937.4,3.61074704]
[1760672263088,0.001,3937.5,3937.4,3.63614451]
[1760672263286,0.001,3937.5,3937.4,4.31927989]
[1760672263779,0.001,3937.5,3937.4,4.42028242]
[1760672264982,0.001,3937.5,3937.4,3.98288242]
[1760672265158,0.001,3937.5,3937.4,4.42028242]
[1760672265898,0.001,3937.5,3937.4,3.98288242]
[1760672267086,0.001,3937.5,3937.4,3.85648242]
[1760672269459,0.001,3937.5,3937.4,4.29388242]
[1760672270378,0.001,3937.5,3937.4,3.85648242]
[1760672271488,0.001,3937.5,3937.4,6.20317989]
[1760672271689,0.001,3937.5,3937.4,6.17778242]
[1760672272960,0.001,3937.5,3937.4,10.8295162]
[1760672273420,0.001,3937.5,3937.4,6.17778242]
[1760672273993,0.001,3937.5,3937.4,8.74278242]
[1760672275772,0.001,3937.5,3937.4,6.17778242]
[1760672275982,0.001,3937.5,3937.4,8.74278242]
[1760672277023,0.001,3937.5,3937.4,2.53753538]
[1760672277163,0.001,3937.5,3937.4,2.53974704]
[1760672277564,0.001,3937.5,3937.4,3.17334704]
[1760672277877,0.001,3937.5,3937.4,3.66564451]
[1760672278077,0.001,3937.5,3937.4,3.64024704]
[1760672279999,0.001,3937.5,3937.4,3.17334704]
[1760672280299,0.001,3937.5,3937.4,4.18234545]
[1760672281099,0.001,3937.5,3937.4,8.96544292]
[1760672281293,0.001,3937.5,3937.4,8.94004545]
[1760672282083,0.001,3937.5,3937.4,8.47534545]
[1760672282284,0.001,3937.5,3937.4,8.94004545]
[1760672283485,0.001,3937.5,3937.4,8.47534545]
[1760672285710,0.001,3937.5,3937.4,5.91034545]
[1760672286813,0.001,3937.5,3937.4,2.53974704]
[1760672286814,0.4437,3937.5,3937.4,2.53974704]
[1760672287105,0.001,3937.5,3937.4,2.53974704]
[1760672287412,0.001,3937.5,3937.4,3.02984451]
[1760672287618,0.001,3937.5,3937.4,3.19874451]
[1760672288438,0.001,3937.5,3937.4,3.17334704]
[1760672288906,0.001,3937.5,3937.4,4.09871545]
[1760672289612,0.001,3937.5,3937.4,4.12411292]
[1760672290289,0.001,3937.5,3937.4,4.09871545]
[1760672290473,0.4437,3937.5,3937.4,4.09871545]
[1760672291920,0.001,3937.5,3937.4,4.09871545]
[1760672292258,0.001,3937.5,3937.4,4.12411292]
[1760672292560,0.001,3937.5,3937.4,4.09871545]
[1760672295010,0.001,3937.5,3937.4,5.85211292]
[1760672295216,0.001,3937.5,3937.4,6.29141545]
[1760672295530,0.001,3937.5,3937.4,10.94200237]
[1760672296443,0.001,3937.5,3937.4,5.82671545]
[1760672300923,0.001,3937.5,3937.1,2.566]
[1760672300924,0.4437,3937.5,3937.1,0.002]
[1760672301116,0.4437,3937.5,3937.1,1.73]
[1760672301318,0.4749,3937.4,3937.1,0.002]
[1760672301617,0.4749,3937.4,3937.3,3.17341154]
[1760672302115,0.4749,3937.4,3937.1,0.002]
[1760672302844,8.687158,3937.3,3937.1,0.002]
[1760672303041,3.4477738,3937.2,3937.1,0.002]
[1760672303262,3.006368,3937.2,3937.1,0.002]
[1760672303552,0.4749,3937.2,3937.1,0.002]
[1760672304353,2.510608,3937.2,3937.1,0.002]
[1760672305323,2.90907994,3937.2,3937.1,0.002]
[1760672307755,7.17695599,3937.2,3937.1,0.002]
[1760672308053,6.07390425,3937.2,3937.1,0.002]
[1760672309568,34.03819625,3937.2,3937.1,0.002]
[1760672309769,34.7089803,3937.2,3937.1,0.002]
[1760672309974,34.31050836,3937.2,3937.1,0.002]
[1760672310469,38.74360036,3937.2,3937.1,0.002]
[1760672311271,43.39418728,3937.2,3937.1,0.002]
[1760672311441,2.54000508,3937.0,3936.9,0.002]
[1760672311761,34.26800508,3937.0,3936.9,0.002]
[1760672312072,34.26819864,3936.7,3936.6,1e-08]
[1760672312280,2.59039223,3936.4,3934.0,0.0818]
[1760672312460,4.26852131,3936.2,3934.0,0.0818]
[1760672312633,36.02454582,3936.2,3934.0,0.0818]
[1760672312835,36.49924582,3936.2,3934.0,0.0818]
[1760672313037,36.49924582,3936.2,3934.1,2.54185074]
[1760672313348,36.49924582,3936.2,3933.9,0.184]
[1760672313349,36.89793266,3936.2,3933.9,2.72594365]
[1760672313653,36.89793266,3936.2,3933.9,0.184]
[1760672313849,36.89793266,3936.2,3933.9,2.72596752]
[1760672314062,36.89793266,3936.2,3933.9,0.184]
[1760672314264,34.31884406,3935.7,3933.9,0.184]
[1760672314468,42.97125529,3935.7,3933.7,0.4721]
[1760672314634,43.44335529,3935.7,3933.6,0.184]
[1760672314962,43.84207483,3935.7,3933.7,0.6336]
[1760672315136,43.84207483,3935.7,3933.6,0.184]
[1760672315464,39.19148791,3935.7,3933.6,2.72618747]
[1760672315665,39.19148791,3935.7,3933.6,0.184]
[1760672316239,39.19148791,3935.7,3933.7,0.4721]
[1760672316767,39.19148791,3935.7,3934.1,0.0818]
[1760672319075,40.33648791,3935.7,3934.1,0.0818]
[1760672319460,40.33648791,3935.7,3934.2,0.4721]
[1760672320172,36.62648791,3935.7,3934.1,0.0818]
[1760672320470,37.92365091,3935.7,3934.7,0.4721]
[1760672320657,38.79276837,3935.7,3934.7,0.4721]
[1760672321062,38.28847037,3935.7,3934.7,0.4721]
[1760672321566,24.72232337,3935.7,3935.1,0.186]
[1760672321775,25.86830137,3935.7,3935.1,0.186]
[1760672322073,26.68909018,3935.7,3935.1,0.186]
[1760672322472,24.14824612,3935.7,3935.1,0.186]
[1760672322774,12.83650012,3935.7,3935.1,0.186]
[1760672322979,9.48509012,3935.7,3935.2,0.4721]
[1760672323273,6.91302181,3935.7,3935.6,0.4741]
[1760672323569,0.39868881,3935.7,3935.6,0.4741]
[1760672323767,1.49368881,3935.7,3935.6,0.4741]
[1760672323969,1.49368881,3935.7,3935.6,3.57101958]
[1760672324387,2.96468881,3935.7,3935.6,3.57101958]
[1760672324543,9.603354,3937.1,3935.7,0.6336]
[1760672324743,0.39858197,3936.3,3936.0,2.54065009]
[1760672324943,2.566,3936.2,3936.1,0.4721]
[1760672328879,2.566,3936.2,3936.1,3.01268585]
[1760672329242,2.566,3936.2,3936.1,3.58530121]
[1760672331891,2.566,3936.2,3935.9,0.6336]
[1760672332189,2.567,3936.2,3935.9,0.6336]
[1760672332764,2.567,3936.2,3936.0,0.6336]
[1760672332965,2.567,3936.2,3936.0,3.17424411]
[1760672333848,2.567,3936.2,3936.0,3.62024411]
[1760672334166,2.567,3936.2,3936.0,3.17424411]
[1760672334483,2.567,3936.2,3936.1,2.54058585]
[1760672335685,2.567,3936.2,3936.1,3.15928585]
[1760672335983,2.567,3936.2,3936.1,2.71328585]
[1760672336158,2.567,3936.2,3936.1,0.1727]
[1760672336355,2.567,3936.2,3935.9,0.6336]
[1760672336559,2.567,3936.2,3935.9,3.17427548]
[1760672336957,2.567,3936.2,3935.8,0.6336]
[1760672337157,16.701004,3936.1,3935.6,0.002]
[1760672337370,20.408129,3935.9,3935.6,0.002]
[1760672337584,5.087241,3935.7,3935.6,0.002]
[1760672337765,4.865655,3935.7,3935.6,0.002]
[1760672338668,8.213886,3935.7,3935.6,0.002]
[1760672338860,6.252862,3935.7,3935.6,0.002]
[1760672339462,6.70273219,3935.7,3935.6,0.002]
[1760672339658,13.02242019,3935.7,3935.6,0.002]
[1760672340393,17.29126425,3935.7,3935.6,0.002]
[1760672340781,26.39495619,3935.7,3935.6,0.002]
[1760672341007,25.11245619,3935.7,3935.6,0.002]
[1760672341295,28.05197223,3935.7,3935.6,0.002]
[1760672341690,35.60768623,3935.7,3935.6,0.002]
[1760672343268,29.47074917,3935.7,3935.6,0.002]
[1760672343596,32.01159323,3935.7,3935.6,0.002]
[1760672343799,35.60768623,3935.7,3935.6,0.002]
[1760672347085,2.54103775,3935.4,3935.3,0.002]
[1760672347284,37.46763775,3935.4,3935.3,0.002]
[1760672347489,37.90533775,3935.4,3935.3,0.002]
[1760672348094,38.00731418,3935.4,3935.3,0.002]
[1760672349172,4.95270233,3935.3,3935.2,1e-08]
[1760672349374,37.45285859,3935.3,3935.2,1e-08]
[1760672349607,37.89055859,3935.3,3935.2,1e-08]
[1760672350032,37.25695859,3935.3,3935.2,1e-08]
[1760672350323,40.96795859,3935.3,3935.2,1e-08]
[1760672350538,19.26109426,3935.3,3935.2,1e-08]
[1760672350811,2.569,3935.6,3935.3,0.6336]
[1760672350984,2.569,3935.6,3935.4,0.49331037]
[1760672351313,0.001,3935.7,3935.6,0.6336]
[1760672351512,0.001,3936.1,3936.0,3.1742504]
[1760672351713,0.001,3936.1,3935.7,0.4679]
[1760672352011,8.162158,3936.0,3935.2,0.63360001]
[1760672352311,8.162158,3936.0,3935.4,2.54098006]
[1760672352514,3.415309,3936.0,3935.6,2.54085908]
[1760672352679,2.57,3935.9,3935.8,2.54077951]
[1760672353373,2.57,3935.9,3935.2,0.63360001]
[1760672353374,3.618432,3935.8,3935.2,1e-08]
[1760672353596,1.728,3935.7,3935.3,0.4679]
[1760672353796,5.39004,3935.6,3935.4,0.4679]
[1760672354004,2.571,3935.5,3935.2,1e-08]
[1760672354171,2.571,3935.5,3935.2,2.54115867]
[1760672354386,2.571,3935.5,3935.2,1e-08]
[1760672354792,2.571,3935.5,3935.3,0.4679]
[1760672358002,1.728,3935.4,3935.2,1e-08]
[1760672358317,14.615975,3935.3,3935.2,1e-08]
[1760672358513,11.397178,3935.3,3935.2,1e-08]
[1760672359214,9.770951,3935.3,3935.2,1e-08]
[1760672359513,11.05212248,3935.3,3935.2,1e-08]
[1760672359924,13.59322481,3935.3,3935.2,1e-08]
[1760672360124,35.98797381,3935.3,3935.2,1e-08]
[1760672360426,30.86549181,3935.3,3935.2,1e-08]
[1760672361122,36.03797381,3935.3,3935.2,1e-08]
[1760672362802,31.63229646,3935.3,3935.2,1e-08]
[1760672363003,31.68229646,3935.3,3935.2,1e-08]
[1760672363201,36.43673246,3935.3,3935.2,1e-08]
[1760672364488,34.17847946,3935.3,3935.2,1e-08]
[1760672364691,31.89917446,3935.3,3935.2,1e-08]
[1760672364934,24.47991246,3935.3,3935.2,1e-08]
[1760672365117,39.00183246,3935.3,3935.2,1e-08]
[1760672366424,38.95183246,3935.3,3935.2,1e-08]
[1760672366614,34.31936064,3934.9,3934.8,0.00100001]
[1760672366924,37.11766064,3934.9,3934.8,0.00100001]
[1760672367229,37.94927578,3934.9,3934.8,0.00100001]
[1760672367445,37.55046064,3934.9,3934.8,0.00100001]
[1760672369007,37.11766064,3934.9,3934.8,0.00100001]
[1760672369213,36.25733122,3934.9,3934.8,0.00100001]
[1760672369540,31.94959822,3934.9,3934.8,0.00100001]
[1760672370244,38.99237422,3934.9,3934.8,0.00100001]
[1760672370441,39.39117092,3934.9,3934.8,0.00100001]
[1760672371724,36.45488792,3934.9,3934.8,0.00100001]
[1760672372039,36.40488792,3934.9,3934.8,0.00100001]
[1760672372343,32.17409992,3934.9,3934.8,0.00100001]
[1760672372530,17.50180892,3934.9,3934.8,0.00100001]
[1760672372846,17.50180892,3934.9,3934.8,0.47460001]
[1760672372847,14.37107728,3934.9,3934.8,0.47460001]
[1760672373053,6.2328527,3934.9,3934.8,0.47460001]
[1760672373210,16.6997627,3934.9,3934.8,0.47460001]
[1760672373415,15.6901427,3934.9,3934.8,0.00100001]
[1760672373845,18.75304375,3934.9,3934.8,0.00100001]
[1760672374033,20.96966411,3934.9,3934.8,0.00100001]
[1760672374347,28.3738067,3934.9,3934.8,0.00100001]
[1760672374554,14.1152197,3934.9,3934.8,0.47460001]
[1760672374918,2.9697967,3934.9,3934.8,0.47460001]
[1760672375255,14.7674327,3934.9,3934.8,0.47460001]
[1760672375455,14.7674327,3934.9,3934.8,0.00100001]
[1760672375661,5.1615847,3934.9,3934.8,0.47460001]
[1760672376147,2.9697967,3934.9,3934.8,0.47460001]
[1760672384865,2.571,3934.9,3934.8,1.41001485]
[1760672385062,2.571,3934.9,3934.8,0.77641485]
[1760672385262,2.571,3934.9,3934.8,0.00100001]
[1760672386268,5.512544,3934.9,3934.8,0.00100001]
[1760672386838,5.513544,3934.9,3934.8,0.00100001]
[1760672387468,2.572,3934.9,3934.8,0.00100001]
[1760672388065,5.019208,3934.9,3934.8,0.00100001]
[1760672388273,2.572,3934.9,3934.8,0.00100001]
[1760672388476,4.617594,3934.9,3934.8,0.00100001]
[1760672388768,2.572,3934.9,3934.8,0.00100001]
[1760672388946,2.572,3934.9,3934.8,1.10820001]
[1760672389546,2.572,3934.9,3934.8,4.26895505]
[1760672390167,2.572,3934.9,3934.8,1.72752982]
[1760672390751,2.572,3934.9,3934.8,0.63460001]
[1760672390954,2.572,3934.9,3934.8,1.10820001]
[1760672391867,2.572,3934.9,3934.8,3.64962524]
[1760672392052,2.572,3934.9,3934.8,1.10820001]
[1760672393548,2.572,3934.9,3934.8,3.64962524]
[1760672393777,2.572,3934.9,3934.8,4.26894932]
[1760672394274,2.572,3934.9,3934.8,1.25392409]
[1760672394478,2.572,3934.9,3934.8,0.63460001]
[1760672395079,9.074857,3934.9,3934.8,0.00100001]
[1760672395243,4.787075,3934.9,3934.8,0.00100001]
[1760672395443,16.413076,3934.9,3934.8,0.00100001]
[1760672395741,12.84177308,3934.9,3934.8,0.00100001]
[1760672396378,15.01862308,3934.9,3934.8,0.00100001]
[1760672397442,33.91794672,3934.9,3934.8,0.00100001]
[1760672398262,33.51922711,3934.9,3934.8,0.00100001]
[1760672398463,39.39878511,3934.9,3934.8,0.00100001]
[1760672398663,36.92659911,3934.9,3934.8,0.00100001]
[1760672399269,36.30876811,3934.9,3934.8,0.00100001]
[1760672399493,39.39878511,3934.9,3934.8,0.00100001]
[1760672399789,31.93032711,3934.9,3934.8,0.00100001]
[1760672400347,24.98001411,3934.9,3934.8,0.00100001]
[1760672400655,30.12373211,3934.9,3934.8,0.00100001]
[1760672401372,30.52250075,3934.9,3934.8,0.00100001]
[1760672401572,34.09885975,3934.9,3934.8,0.00100001]
[1760672401770,26.61161575,3934.9,3934.8,0.00100001]
[1760672402575,39.79755375,3934.9,3934.8,0.00100001]
[1760672403486,31.32807375,3934.9,3934.8,0.00100001]
[1760672403777,30.88602375,3934.9,3934.8,0.00100001]
[1760672404479,30.93602375,3934.9,3934.8,0.00100001]
[1760672404780,37.28271275,3934.9,3934.8,0.00100001]
[1760672405678,9.84755375,3934.9,3934.8,0.00100001]
[1760672405986,39.84755375,3934.9,3934.8,0.00100001]
[1760672406990,35.42821275,3934.9,3934.8,0.00100001]
[1760672407485,34.93201275,3934.9,3934.8,0.00100001]
[1760672407790,26.75477111,3934.9,3934.8,0.00100001]
[1760672407986,17.55683547,3934.9,3934.8,0.00100001]
[1760672408184,10.520174,3934.9,3934.8,0.00100001]
[1760672408856,9.232415,3934.9,3934.8,0.42960001]
[1760672409056,2.572,3934.9,3934.8,0.42960001]
[1760672411269,2.572,3934.9,3934.8,3.60462524]
[1760672411791,0.001,3934.9,3934.8,3.60462524]
[1760672411992,0.001,3934.9,3934.8,1.69065762]
[1760672411993,0.943,3934.9,3934.8,1.69065762]
[1760672412158,0.943,3934.9,3934.8,0.00100001]
[1760672414358,0.943,3934.9,3934.8,0.42960001]
[1760672415960,0.943,3934.9,3934.8,3.60462524]
[1760672416161,0.943,3934.9,3934.8,1.06320001]
[1760672416356,0.943,3934.9,3934.8,3.60462524]
[1760672416556,0.943,3934.9,3934.8,4.21944261]
[1760672417094,0.943,3934.9,3934.8,4.37125686]
[1760672417095,0.001,3934.9,3934.8,4.37125686]
[1760672417504,0.001,3934.9,3934.8,4.34584261]
[1760672418004,0.001,3934.9,3934.8,6.83807354]
[1760672419768,0.001,3934.9,3934.8,5.94744261]
[1760672420167,0.001,3934.9,3934.8,6.04934551]
[1760672424010,0.001,3934.9,3934.8,5.33904261]
[1760672424311,0.001,3934.9,3934.8,5.97264261]
[1760672428022,0.001,3934.9,3934.8,6.07453695]
[1760672429128,0.001,3934.9,3934.8,5.62073695]
[1760672429530,0.001,3934.9,3934.8,5.51884261]
[1760672429907,0.001,3934.9,3934.8,5.64524261]
[1760672430110,0.001,3934.9,3934.8,6.09904261]
[1760672430327,0.001,3934.9,3934.8,5.64524261]
[1760672431106,0.001,3934.9,3934.8,6.09904261]
[1760672432142,0.001,3934.9,3934.8,5.64524261]
[1760672433039,0.001,3934.9,3934.8,6.09904261]
[1760672433404,0.001,3934.9,3934.8,5.97264261]
[1760672433605,0.001,3934.9,3934.8,6.09904261]
[1760672434544,0.001,3934.9,3934.8,5.64524261]
[1760672435230,0.001,3934.9,3934.8,6.10544261]
[1760672439253,0.001,3934.9,3934.8,5.64524261]
[1760672441650,0.001,3934.9,3934.8,6.09904261]
[1760672442041,0.001,3934.9,3934.8,5.64524261]
[1760672444889,0.001,3934.9,3934.8,6.09904261]
[1760672446676,0.001,3934.9,3934.8,5.64524261]
[1760672448381,0.693,3934.9,3934.8,2.54242524]
[1760672448550,0.693,3934.9,3934.8,0.00100001]
[1760672453845,1.09169693,3934.9,3934.8,0.00100001]
[1760672455581,3.65769693,3934.9,3934.8,0.00100001]
[1760672456458,3.65769693,3934.9,3934.8,2.54242524]
[1760672456459,0.39969693,3934.9,3934.8,2.54242524]
[1760672456657,0.001,3934.9,3934.8,11.30143821]
[1760672456980,0.001,3934.9,3934.8,11.67572089]
[1760672457179,0.001,3934.9,3934.8,14.24272089]
[1760672458184,0.001,3934.9,3934.8,11.67572089]
[1760672458385,0.001,3934.9,3934.8,14.36912089]
[1760672460689,0.001,3934.9,3934.8,11.80212089]
[1760672461093,0.001,3934.9,3934.8,0.00100001]
[1760672461388,0.4559,3934.9,3934.8,0.00100001]
[1760672462181,4.751159,3934.9,3934.8,0.00100001]
[1760672462487,3.793877,3934.9,3934.8,0.00100001]
[1760672462695,4.110058,3934.9,3934.8,0.00100001]
[1760672462895,9.254904,3934.9,3934.8,0.00100001]
[1760672463196,4.85487363,3934.9,3934.8,0.00100001]
[1760672463394,3.47377163,3934.9,3934.8,0.00100001]
[1760672465099,10.48589963,3934.9,3934.8,0.00100001]
[1760672465401,13.84001663,3934.9,3934.8,0.00100001]
[1760672465689,8.03559663,3934.9,3934.8,0.00100001]
[1760672465894,7.76611163,3934.9,3934.8,0.00100001]
[1760672466398,11.31620263,3934.9,3934.8,0.00100001]
[1760672466563,10.84420263,3934.9,3934.8,0.00100001]
[1760672466886,5.65920563,3934.9,3934.8,0.00100001]
[1760672467196,3.47377163,3934.9,3934.8,0.00100001]
[1760672467995,8.96245063,3934.9,3934.8,0.00100001]
[1760672468190,8.52355563,3934.9,3934.8,0.00100001]
[1760672468392,20.30963563,3934.9,3934.8,0.00100001]
[1760672468587,8.33114763,3934.9,3934.8,0.00100001]
[1760672469481,17.86695663,3934.9,3934.8,0.00100001]
[1760672469659,20.40831727,3934.9,3934.8,0.00100001]
[1760672470297,22.13631727,3934.9,3934.8,0.00100001]
[1760672470496,38.14189076,3934.9,3934.8,0.00100001]
[1760672471985,38.41705073,3934.9,3934.8,0.00100001]
[1760672472190,39.30899256,3934.9,3934.8,0.00100001]
[1760672472377,9.30899256,3934.9,3934.8,0.00100001]
[1760672472579,39.30899256,3934.9,3934.8,0.00100001]
[1760672474373,39.03383259,3934.9,3934.8,0.00100001]
[1760672475398,38.77549076,3934.9,3934.8,0.00100001]
[1760672475598,38.19189076,3934.9,3934.8,0.00100001]
[1760672477995,35.62489076,3934.9,3934.8,0.00100001]
[1760672478206,39.33889076,3934.9,3934.8,0.00100001]
[1760672480570,45.80889076,3934.9,3934.8,0.00100001]
[1760672480768,40.36689076,3934.9,3934.8,0.00100001]
[1760672480990,25.88516227,3934.9,3934.8,0.00100001]